[Event "Titled Tuesday Blitz December 13 Early 2022"]
[White "Yilmaz, Mustafa"]
[Black "Jobava, Baadur"]
[WhiteFideId "6302718"]
[BlackFideId "13601520"]
[WhiteElo "2564"]
[BlackElo "2582"]
[Result "0-1"]
[Round "05"]
[TimeControl "180+1"]
[Date "2022.12.13"]
[WhiteClock "0:00:05"]
[BlackClock "0:00:10"]

1. d4 {[%clk 0:02:56]}  d5 {[%clk 0:02:59]} 2. c4 {[%clk 0:02:56]}  dxc4 {[%clk 0:03:00]} 3. Nf3 {[%clk 0:02:54]}  Nf6 {[%clk 0:03:00]} 4. e3 {[%clk 0:02:54]}  Bg4 {[%clk 0:03:01]} 5. Bxc4 {[%clk 0:02:54]}  e6 {[%clk 0:03:01]} 6. h3 {[%clk 0:02:54]}  Bh5 {[%clk 0:03:02]} 7. Nc3 {[%clk 0:02:54]}  Nc6 {[%clk 0:03:02]} 8. O-O {[%clk 0:02:54]}  Bd6 {[%clk 0:03:02]} 9. Re1 {[%clk 0:02:36]}  Qe7 {[%clk 0:03:02]} 10. g4 {[%clk 0:02:34]}  Nxg4 {[%clk 0:03:02]} 11. hxg4 {[%clk 0:02:34]}  Bxg4 {[%clk 0:03:03]} 12. Bf1 {[%clk 0:02:29]}  h5 {[%clk 0:03:03]} 13. Bg2 {[%clk 0:02:25]}  h4 {[%clk 0:03:04]} 14. Qb3 {[%clk 0:02:23]}  O-O-O {[%clk 0:02:39]} 15. Ne4 {[%clk 0:02:23]}  h3 {[%clk 0:02:38]} 16. Bh1 {[%clk 0:02:23]}  h2+ {[%clk 0:02:34]} 17. Kf1 {[%clk 0:02:19]}  Bxf3 {[%clk 0:02:34]} 18. Bxf3 {[%clk 0:02:20]}  h1=Q+ {[%clk 0:02:34]} 19. Bxh1 {[%clk 0:02:21]}  Rxh1+ {[%clk 0:02:34]} 20. Ke2 {[%clk 0:02:21]}  Rxe1+ {[%clk 0:02:35]} 21. Kxe1 {[%clk 0:02:22]}  Qh4 {[%clk 0:02:20]} 22. Nd2 {[%clk 0:02:04]}  Qh1+ {[%clk 0:01:56]} 23. Ke2 {[%clk 0:02:04]}  Bb4 {[%clk 0:01:45]} 24. Nf3 {[%clk 0:01:48]}  Qh5 {[%clk 0:01:39]} 25. a3 {[%clk 0:01:44]}  Ba5 {[%clk 0:01:35]} 26. Qc2 {[%clk 0:01:33]}  Rxd4 {[%clk 0:01:21]} 27. b4 {[%clk 0:01:31]}  Rf4 {[%clk 0:01:10]} 28. Qxc6 {[%clk 0:01:31]}  bxc6 {[%clk 0:01:09]} 29. exf4 {[%clk 0:01:32]}  Bb6 {[%clk 0:01:07]} 30. Be3 {[%clk 0:01:32]}  Qb5+ {[%clk 0:01:06]} 31. Kd2 {[%clk 0:01:32]}  Qd5+ {[%clk 0:01:06]} 32. Ke2 {[%clk 0:01:32]}  Qc4+ {[%clk 0:01:07]} 33. Kd2 {[%clk 0:01:32]}  c5 {[%clk 0:01:06]} 34. Ne5 {[%clk 0:01:25]}  Qd5+ {[%clk 0:01:06]} 35. Ke2 {[%clk 0:01:25]}  cxb4 {[%clk 0:01:03]} 36. axb4 {[%clk 0:01:24]}  Qb5+ {[%clk 0:01:03]} 37. Nd3 {[%clk 0:01:24]}  Kb7 {[%clk 0:00:57]} 38. Rg1 {[%clk 0:01:20]}  Qc4 {[%clk 0:00:48]} 39. Rxg7 {[%clk 0:01:09]}  Qc2+ {[%clk 0:00:48]} 40. Bd2 {[%clk 0:01:09]}  a5 {[%clk 0:00:48]} 41. Rg1 {[%clk 0:00:55]}  a4 {[%clk 0:00:41]} 42. Rc1 {[%clk 0:00:55]}  Qb3 {[%clk 0:00:42]} 43. Rc3 {[%clk 0:00:55]}  Qd5 {[%clk 0:00:41]} 44. Be3 {[%clk 0:00:52]}  Qa2+ {[%clk 0:00:38]} 45. Bd2 {[%clk 0:00:49]}  a3 {[%clk 0:00:37]} 46. Nc1 {[%clk 0:00:46]}  Qb2 {[%clk 0:00:37]} 47. Rb3 {[%clk 0:00:46]}  Qa1 {[%clk 0:00:34]} 48. Kd1 {[%clk 0:00:42]}  a2 {[%clk 0:00:28]} 49. Ra3 {[%clk 0:00:35]}  Qd4 {[%clk 0:00:27]} 50. Rxa2 {[%clk 0:00:27]}  Qxf2 {[%clk 0:00:28]} 51. Ra3 {[%clk 0:00:25]}  Qf1+ {[%clk 0:00:27]} 52. Kc2 {[%clk 0:00:25]}  Qc4+ {[%clk 0:00:28]} 53. Kd1 {[%clk 0:00:23]}  Qe4 {[%clk 0:00:27]} 54. Nd3 {[%clk 0:00:23]}  f6 {[%clk 0:00:27]} 55. Rc3 {[%clk 0:00:13]}  Kc8 {[%clk 0:00:27]} 56. Kc2 {[%clk 0:00:09]}  Qa8 {[%clk 0:00:24]} 57. Nc5 {[%clk 0:00:09]}  Qa2+ {[%clk 0:00:24]} 58. Kd3 {[%clk 0:00:09]}  Qd5+ {[%clk 0:00:24]} 59. Ke2 {[%clk 0:00:10]}  e5 {[%clk 0:00:24]} 60. fxe5 {[%clk 0:00:10]}  fxe5 {[%clk 0:00:24]} 61. Be3 {[%clk 0:00:11]}  e4 {[%clk 0:00:23]} 62. Rc2 {[%clk 0:00:08]}  Qh5+ {[%clk 0:00:21]} 63. Kd2 {[%clk 0:00:08]}  Qh2+ {[%clk 0:00:20]} 64. Kc3 {[%clk 0:00:09]}  Qe5+ {[%clk 0:00:21]} 65. Kd2 {[%clk 0:00:09]}  Qd5+ {[%clk 0:00:17]} 66. Ke2 {[%clk 0:00:09]}  Bxc5 {[%clk 0:00:15]} 67. Rxc5 {[%clk 0:00:09]}  Qd3+ {[%clk 0:00:16]} 68. Kf2 {[%clk 0:00:10]}  Kd7 {[%clk 0:00:16]} 69. b5 {[%clk 0:00:10]}  Qb3 {[%clk 0:00:13]} 70. Rg5 {[%clk 0:00:10]}  Ke6 {[%clk 0:00:12]} 71. Rc5 {[%clk 0:00:09]}  Qb2+ {[%clk 0:00:10]} 72. Kg3 {[%clk 0:00:08]}  Qe2 {[%clk 0:00:10]} 73. Rc3 {[%clk 0:00:05]}  Qe1+ {[%clk 0:00:10]} 0-1


[Site "https://www.chess.com"]

[Event "Titled Tuesday Blitz December 13 Early 2022"]
[White "Aggelis, Nikolaos"]
[Black "Asavasaetakul, Chawit"]
[WhiteFideId "4213220"]
[BlackFideId "6204856"]
[WhiteElo "2189"]
[BlackElo "1919"]
[Result "0-1"]
[Round "06"]
[TimeControl "180+1"]
[Date "2022.12.14"]
[WhiteClock "0:00:19"]
[BlackClock "0:00:54"]

1. d4 {[%clk 0:02:52]}  d5 {[%clk 0:02:59]} 2. Nf3 {[%clk 0:02:51]}  c6 {[%clk 0:03:00]} 3. c4 {[%clk 0:02:52]}  Nf6 {[%clk 0:03:00]} 4. Nc3 {[%clk 0:02:50]}  dxc4 {[%clk 0:03:00]} 5. a4 {[%clk 0:02:48]}  Bf5 {[%clk 0:03:00]} 6. Ne5 {[%clk 0:02:48]}  e6 {[%clk 0:02:58]} 7. f3 {[%clk 0:02:40]}  Bb4 {[%clk 0:02:56]} 8. Kf2 {[%clk 0:02:39]}  Bc2 {[%clk 0:02:50]} 9. Qd2 {[%clk 0:02:34]}  Bg6 {[%clk 0:02:32]} 10. Nxc4 {[%clk 0:02:33]}  O-O {[%clk 0:02:31]} 11. Qf4 {[%clk 0:02:31]}  Nbd7 {[%clk 0:02:26]} 12. g4 {[%clk 0:02:30]}  Re8 {[%clk 0:02:20]} 13. h4 {[%clk 0:02:29]}  h6 {[%clk 0:02:13]} 14. h5 {[%clk 0:02:24]}  Bh7 {[%clk 0:02:13]} 15. g5 {[%clk 0:02:24]}  Nd5 {[%clk 0:02:10]} 16. Nxd5 {[%clk 0:02:21]}  exd5 {[%clk 0:02:09]} 17. gxh6 {[%clk 0:02:07]}  dxc4 {[%clk 0:02:07]} 18. Rg1 {[%clk 0:02:08]}  Bf8 {[%clk 0:01:41]} 19. hxg7 {[%clk 0:02:04]}  Bb4 {[%clk 0:01:34]} 20. e4 {[%clk 0:02:03]}  Nf6 {[%clk 0:01:27]} 21. Be3 {[%clk 0:01:55]}  Nxe4+ {[%clk 0:01:26]} 22. fxe4 {[%clk 0:01:52]}  Rxe4 {[%clk 0:01:26]} 23. Qh6 {[%clk 0:01:44]}  Qh4+ {[%clk 0:01:24]} 24. Rg3 {[%clk 0:01:37]}  Bd6 {[%clk 0:01:20]} 25. Qxd6 {[%clk 0:01:35]}  Rae8 {[%clk 0:01:17]} 26. Re1 {[%clk 0:01:31]}  R4e6 {[%clk 0:01:11]} 27. Bg5 {[%clk 0:01:08]}  Qh2+ {[%clk 0:01:07]} 28. Bg2 {[%clk 0:01:08]}  Rxe1 {[%clk 0:01:05]} 29. Be3 {[%clk 0:00:18]}  R1xe3 {[%clk 0:00:54]} 30. Rxe3 {[%clk 0:00:18]}  Qxd6 {[%clk 0:00:54]} 31. Rxe8+ {[%clk 0:00:19]}  Kxg7 {[%clk 0:00:54]} 0-1


[Site "https://www.chess.com"]

[Event "Titled Tuesday Blitz December 13 Early 2022"]
[White "Aradhya, Garg"]
[Black "Bethke, Richard"]
[WhiteFideId "25006746"]
[BlackFideId "12959243"]
[WhiteElo "2278"]
[BlackElo "2369"]
[Result "1-0"]
[Round "06"]
[TimeControl "180+1"]
[Date "2022.12.14"]
[WhiteClock "0:02:47"]
[BlackClock "0:02:41"]

1. d4 {[%clk 0:03:00]}  f5 {[%clk 0:02:59]} 2. Nf3 {[%clk 0:03:00]}  Nf6 {[%clk 0:02:58]} 3. g3 {[%clk 0:02:59]}  b6 {[%clk 0:02:58]} 4. Bg2 {[%clk 0:02:59]}  Bb7 {[%clk 0:02:58]} 5. O-O {[%clk 0:02:59]}  e6 {[%clk 0:02:59]} 6. c4 {[%clk 0:02:58]}  Be7 {[%clk 0:02:58]} 7. d5 {[%clk 0:02:57]}  exd5 {[%clk 0:02:56]} 8. Nd4 {[%clk 0:02:51]}  g6 {[%clk 0:02:48]} 9. cxd5 {[%clk 0:02:51]}  O-O {[%clk 0:02:44]} 10. d6 {[%clk 0:02:51]}  Bxg2 {[%clk 0:02:39]} 11. dxe7 {[%clk 0:02:50]}  Qxe7 {[%clk 0:02:40]} 12. Kxg2 {[%clk 0:02:50]}  c5 {[%clk 0:02:41]} 13. Nf3 {[%clk 0:02:49]}  Ne4 {[%clk 0:02:41]} 14. Qd5+ {[%clk 0:02:47]} 1-0


[Site "https://www.chess.com"]

[Event "Titled Tuesday Blitz December 13 Early 2022"]
[White "Ashraf, Artin"]
[Black "Kuzmin, Roman"]
[WhiteFideId "22514805"]
[BlackFideId "44134932"]
[WhiteElo "2243"]
[BlackElo "2180"]
[Result "1-0"]
[Round "06"]
[TimeControl "180+1"]
[Date "2022.12.14"]
[WhiteClock "0:01:07"]
[BlackClock "0:00:02"]

1. Nf3 {[%clk 0:02:59]}  Nf6 {[%clk 0:03:00]} 2. g3 {[%clk 0:02:58]}  e6 {[%clk 0:03:00]} 3. d3 {[%clk 0:02:59]}  Be7 {[%clk 0:03:01]} 4. Bg2 {[%clk 0:02:58]}  d5 {[%clk 0:03:01]} 5. O-O {[%clk 0:02:58]}  O-O {[%clk 0:03:02]} 6. Nbd2 {[%clk 0:02:59]}  c5 {[%clk 0:03:03]} 7. e4 {[%clk 0:02:59]}  Nc6 {[%clk 0:03:03]} 8. Re1 {[%clk 0:02:59]}  b5 {[%clk 0:03:02]} 9. e5 {[%clk 0:02:59]}  Nd7 {[%clk 0:03:03]} 10. Nf1 {[%clk 0:02:59]}  Qc7 {[%clk 0:03:03]} 11. Bf4 {[%clk 0:02:58]}  a5 {[%clk 0:03:04]} 12. h4 {[%clk 0:02:58]}  Ba6 {[%clk 0:03:04]} 13. h5 {[%clk 0:02:58]}  h6 {[%clk 0:03:04]} 14. c3 {[%clk 0:02:51]}  Rfc8 {[%clk 0:03:03]} 15. Rc1 {[%clk 0:02:45]}  Qd8 {[%clk 0:03:02]} 16. Qd2 {[%clk 0:02:43]}  Bf8 {[%clk 0:03:02]} 17. g4 {[%clk 0:02:42]}  g5 {[%clk 0:02:19]} 18. hxg6 {[%clk 0:02:37]}  fxg6 {[%clk 0:02:20]} 19. Bxh6 {[%clk 0:02:36]}  Qe7 {[%clk 0:02:15]} 20. Ng3 {[%clk 0:02:20]}  Bxh6 {[%clk 0:02:12]} 21. Qxh6 {[%clk 0:02:19]}  Qg7 {[%clk 0:02:13]} 22. Qg5 {[%clk 0:02:03]}  Rf8 {[%clk 0:02:03]} 23. d4 {[%clk 0:02:02]}  Rf7 {[%clk 0:01:45]} 24. Nh4 {[%clk 0:01:51]}  Kh7 {[%clk 0:01:25]} 25. Rcd1 {[%clk 0:01:43]}  Raf8 {[%clk 0:01:20]} 26. Rd2 {[%clk 0:01:42]}  b4 {[%clk 0:01:20]} 27. Bf1 {[%clk 0:01:36]}  Bxf1 {[%clk 0:01:13]} 28. Rxf1 {[%clk 0:01:36]}  Rf4 {[%clk 0:01:12]} 29. Ng2 {[%clk 0:01:27]}  Rf3 {[%clk 0:01:05]} 30. Ne1 {[%clk 0:01:26]}  R3f7 {[%clk 0:00:43]} 31. Kg2 {[%clk 0:01:23]}  cxd4 {[%clk 0:00:41]} 32. cxd4 {[%clk 0:01:22]}  Kg8 {[%clk 0:00:22]} 33. f4 {[%clk 0:01:17]}  Nb6 {[%clk 0:00:19]} 34. b3 {[%clk 0:01:16]}  a4 {[%clk 0:00:19]} 35. Nc2 {[%clk 0:01:14]}  axb3 {[%clk 0:00:19]} 36. axb3 {[%clk 0:01:15]}  Ra8 {[%clk 0:00:18]} 37. f5 {[%clk 0:01:12]}  gxf5 {[%clk 0:00:17]} 38. Qxg7+ {[%clk 0:01:12]}  Rxg7 {[%clk 0:00:16]} 39. gxf5 {[%clk 0:01:13]}  exf5 {[%clk 0:00:16]} 40. Ne3 {[%clk 0:01:14]}  Ra3 {[%clk 0:00:08]} 41. Nxf5 {[%clk 0:01:13]}  Rg5 {[%clk 0:00:07]} 42. Rc2 {[%clk 0:01:09]}  Na5 {[%clk 0:00:04]} 43. Rc7 {[%clk 0:01:09]}  Ra2+ {[%clk 0:00:03]} 44. Kh3 {[%clk 0:01:08]}  Nxb3 {[%clk 0:00:02]} 45. Nh6+ {[%clk 0:01:07]}  Kh8 {[%clk 0:00:02]} 46. Rf8+ {[%clk 0:01:07]} 1-0


[Site "https://www.chess.com"]

[Event "Titled Tuesday Blitz December 13 Early 2022"]
[White "Balint, Vilmos"]
[Black "Aloma Vidal, Robert"]
[WhiteFideId "718050"]
[BlackFideId "2260409"]
[WhiteElo "2183"]
[BlackElo "2435"]
[Result "0-1"]
[Round "06"]
[TimeControl "180+1"]
[Date "2022.12.14"]
[WhiteClock "0:01:26"]
[BlackClock "0:00:36"]

1. e4 {[%clk 0:02:52]}  e5 {[%clk 0:02:01]} 2. f4 {[%clk 0:02:52]}  exf4 {[%clk 0:01:55]} 3. Bc4 {[%clk 0:02:51]}  Nf6 {[%clk 0:01:53]} 4. Nc3 {[%clk 0:02:51]}  d5 {[%clk 0:01:52]} 5. Bxd5 {[%clk 0:02:50]}  Nxd5 {[%clk 0:01:52]} 6. Nxd5 {[%clk 0:02:50]}  g5 {[%clk 0:01:26]} 7. b3 {[%clk 0:02:33]}  Bg7 {[%clk 0:01:24]} 8. Rb1 {[%clk 0:02:34]}  c6 {[%clk 0:01:23]} 9. Nc3 {[%clk 0:02:32]}  Bxc3 {[%clk 0:01:23]} 10. dxc3 {[%clk 0:02:32]}  Qxd1+ {[%clk 0:01:24]} 11. Kxd1 {[%clk 0:02:32]}  Bg4+ {[%clk 0:01:23]} 12. Ke1 {[%clk 0:02:32]}  Nd7 {[%clk 0:01:22]} 13. Nf3 {[%clk 0:02:31]}  f6 {[%clk 0:01:18]} 14. Ba3 {[%clk 0:02:28]}  O-O-O {[%clk 0:01:17]} 15. Kf2 {[%clk 0:02:27]}  Rde8 {[%clk 0:01:16]} 16. Rhe1 {[%clk 0:02:26]}  h5 {[%clk 0:01:15]} 17. Rbd1 {[%clk 0:02:25]}  Ne5 {[%clk 0:01:06]} 18. Rd6 {[%clk 0:02:20]}  Bxf3 {[%clk 0:01:03]} 19. gxf3 {[%clk 0:02:20]}  g4 {[%clk 0:01:04]} 20. Rxf6 {[%clk 0:02:11]}  Nxf3 {[%clk 0:01:04]} 21. Re2 {[%clk 0:02:11]}  Ng5 {[%clk 0:01:05]} 22. e5 {[%clk 0:02:06]}  h4 {[%clk 0:01:00]} 23. Rf5 {[%clk 0:01:54]}  g3+ {[%clk 0:01:00]} 24. hxg3 {[%clk 0:01:52]}  hxg3+ {[%clk 0:01:00]} 25. Ke1 {[%clk 0:01:50]}  Nf3+ {[%clk 0:00:56]} 26. Kf1 {[%clk 0:01:51]}  Rh1+ {[%clk 0:00:52]} 27. Kg2 {[%clk 0:01:50]}  Nh4+ {[%clk 0:00:51]} 28. Kxh1 {[%clk 0:01:50]}  Nxf5 {[%clk 0:00:52]} 29. Bc5 {[%clk 0:01:35]}  f3 {[%clk 0:00:52]} 30. Re4 {[%clk 0:01:35]}  b6 {[%clk 0:00:44]} 31. Be3 {[%clk 0:01:28]}  Rh8+ {[%clk 0:00:40]} 32. Kg1 {[%clk 0:01:28]}  Nxe3 {[%clk 0:00:38]} 33. Rxe3 {[%clk 0:01:28]}  f2+ {[%clk 0:00:38]} 34. Kg2 {[%clk 0:01:26]}  Rh1 {[%clk 0:00:36]} 35. Rf3 {[%clk 0:01:26]}  Rg1+ {[%clk 0:00:36]} 0-1


[Site "https://www.chess.com"]

[Event "Titled Tuesday Blitz December 13 Early 2022"]
[White "Bashirli, Saadat"]
[Black "Lopez Idarraga, Daniel Eduardo"]
[WhiteFideId "13429990"]
[BlackFideId "4405501"]
[WhiteElo "1408"]
[BlackElo "2064"]
[Result "1/2-1/2"]
[Round "06"]
[TimeControl "180+1"]
[Date "2022.12.14"]
[WhiteClock "0:02:00"]
[BlackClock "0:02:37"]

1. d4 {[%clk 0:02:58]}  d5 {[%clk 0:02:58]} 2. c4 {[%clk 0:02:57]}  e6 {[%clk 0:02:59]} 3. Nf3 {[%clk 0:02:54]}  Nf6 {[%clk 0:02:58]} 4. cxd5 {[%clk 0:02:54]}  exd5 {[%clk 0:02:56]} 5. Nc3 {[%clk 0:02:54]}  c6 {[%clk 0:02:57]} 6. Bg5 {[%clk 0:02:52]}  Be7 {[%clk 0:02:55]} 7. Qc2 {[%clk 0:02:51]}  Bg4 {[%clk 0:02:54]} 8. h3 {[%clk 0:02:46]}  Bh5 {[%clk 0:02:54]} 9. e3 {[%clk 0:02:46]}  Bg6 {[%clk 0:02:54]} 10. Bd3 {[%clk 0:02:46]}  Bxd3 {[%clk 0:02:53]} 11. Qxd3 {[%clk 0:02:47]}  Nbd7 {[%clk 0:02:54]} 12. O-O {[%clk 0:02:46]}  O-O {[%clk 0:02:54]} 13. a3 {[%clk 0:02:45]}  a5 {[%clk 0:02:51]} 14. b3 {[%clk 0:02:43]}  Re8 {[%clk 0:02:51]} 15. Rfb1 {[%clk 0:02:44]}  Ne4 {[%clk 0:02:45]} 16. Bxe7 {[%clk 0:02:29]}  Qxe7 {[%clk 0:02:46]} 17. Nd2 {[%clk 0:02:25]}  Ndf6 {[%clk 0:02:43]} 18. Ncxe4 {[%clk 0:02:22]}  Nxe4 {[%clk 0:02:44]} 19. Nxe4 {[%clk 0:02:21]}  Qxe4 {[%clk 0:02:42]} 20. Qxe4 {[%clk 0:02:20]}  Rxe4 {[%clk 0:02:43]} 21. b4 {[%clk 0:02:19]}  axb4 {[%clk 0:02:43]} 22. axb4 {[%clk 0:02:20]}  Ree8 {[%clk 0:02:40]} 23. b5 {[%clk 0:02:17]}  Kf8 {[%clk 0:02:38]} 24. bxc6 {[%clk 0:02:15]}  bxc6 {[%clk 0:02:39]} 25. Rxa8 {[%clk 0:02:02]}  Rxa8 {[%clk 0:02:40]} 26. Rb7 {[%clk 0:02:00]}  Rc8 {[%clk 0:02:37]} 1/2-1/2


[Site "https://www.chess.com"]

[Event "Titled Tuesday Blitz December 13 Early 2022"]
[White "Bettalli, Francesco"]
[Black "Silvestre, Christian"]
[WhiteFideId "2816453"]
[BlackFideId "30956269"]
[WhiteElo "2216"]
[BlackElo "2348"]
[Result "1-0"]
[Round "06"]
[TimeControl "180+1"]
[Date "2022.12.14"]
[WhiteClock "0:00:18"]
[BlackClock "0:00:20"]

1. d4 {[%clk 0:03:00]}  Nf6 {[%clk 0:02:33]} 2. Nf3 {[%clk 0:02:59]}  g6 {[%clk 0:02:31]} 3. Nc3 {[%clk 0:02:57]}  Bg7 {[%clk 0:02:32]} 4. e4 {[%clk 0:02:57]}  d6 {[%clk 0:02:31]} 5. Bg5 {[%clk 0:02:56]}  Nbd7 {[%clk 0:02:23]} 6. e5 {[%clk 0:02:55]}  Ng8 {[%clk 0:02:16]} 7. exd6 {[%clk 0:02:52]}  cxd6 {[%clk 0:02:14]} 8. Bc4 {[%clk 0:02:51]}  Ngf6 {[%clk 0:02:12]} 9. O-O {[%clk 0:02:50]}  O-O {[%clk 0:02:12]} 10. Re1 {[%clk 0:02:49]}  a6 {[%clk 0:02:12]} 11. a4 {[%clk 0:02:49]}  b6 {[%clk 0:02:11]} 12. Nd5 {[%clk 0:02:30]}  e6 {[%clk 0:02:11]} 13. Nxf6+ {[%clk 0:02:29]}  Nxf6 {[%clk 0:02:09]} 14. Qe2 {[%clk 0:02:25]}  Bb7 {[%clk 0:02:08]} 15. h3 {[%clk 0:02:23]}  Re8 {[%clk 0:02:05]} 16. Rad1 {[%clk 0:02:21]}  Rc8 {[%clk 0:01:54]} 17. Bb3 {[%clk 0:02:20]}  Qd7 {[%clk 0:01:52]} 18. c3 {[%clk 0:02:09]}  b5 {[%clk 0:01:50]} 19. axb5 {[%clk 0:02:09]}  axb5 {[%clk 0:01:51]} 20. Ra1 {[%clk 0:02:04]}  h6 {[%clk 0:01:49]} 21. Bf4 {[%clk 0:02:03]}  Nd5 {[%clk 0:01:45]} 22. Bd2 {[%clk 0:02:03]}  Ra8 {[%clk 0:01:41]} 23. Nh2 {[%clk 0:02:00]}  f5 {[%clk 0:01:38]} 24. Nf3 {[%clk 0:01:58]}  Kh7 {[%clk 0:01:38]} 25. h4 {[%clk 0:01:57]}  Rxa1 {[%clk 0:01:36]} 26. Rxa1 {[%clk 0:01:56]}  Ra8 {[%clk 0:01:36]} 27. Rxa8 {[%clk 0:01:54]}  Bxa8 {[%clk 0:01:37]} 28. h5 {[%clk 0:01:53]}  gxh5 {[%clk 0:01:31]} 29. Nh4 {[%clk 0:01:52]}  Qf7 {[%clk 0:01:26]} 30. Qxb5 {[%clk 0:01:48]}  Bf6 {[%clk 0:01:20]} 31. Nf3 {[%clk 0:01:48]}  Bb7 {[%clk 0:01:16]} 32. c4 {[%clk 0:01:44]}  e5 {[%clk 0:01:03]} 33. cxd5 {[%clk 0:01:42]}  e4 {[%clk 0:01:03]} 34. Ne1 {[%clk 0:01:22]}  Bxd4 {[%clk 0:01:02]} 35. Bf4 {[%clk 0:01:20]}  Qe7 {[%clk 0:00:52]} 36. Nc2 {[%clk 0:01:18]}  Bc5 {[%clk 0:00:50]} 37. Ne3 {[%clk 0:01:17]}  Bc8 {[%clk 0:00:48]} 38. Qc6 {[%clk 0:01:10]}  Bd7 {[%clk 0:00:47]} 39. Qb7 {[%clk 0:01:10]}  Qg7 {[%clk 0:00:47]} 40. Bc2 {[%clk 0:00:57]}  h4 {[%clk 0:00:46]} 41. Kh2 {[%clk 0:00:56]}  Bd4 {[%clk 0:00:44]} 42. Bxd6 {[%clk 0:00:54]}  Bxb2 {[%clk 0:00:42]} 43. Bf4 {[%clk 0:00:49]}  Be5 {[%clk 0:00:42]} 44. Bxe5 {[%clk 0:00:47]}  Qxe5+ {[%clk 0:00:43]} 45. Kh1 {[%clk 0:00:48]}  Qa1+ {[%clk 0:00:42]} 46. Kh2 {[%clk 0:00:47]}  Qe5+ {[%clk 0:00:42]} 47. g3 {[%clk 0:00:48]}  hxg3+ {[%clk 0:00:42]} 48. fxg3 {[%clk 0:00:49]}  Qg7 {[%clk 0:00:42]} 49. d6 {[%clk 0:00:42]}  h5 {[%clk 0:00:42]} 50. Qd5 {[%clk 0:00:25]}  h4 {[%clk 0:00:41]} 51. gxh4 {[%clk 0:00:25]}  Qc3 {[%clk 0:00:33]} 52. Qf7+ {[%clk 0:00:23]}  Kh6 {[%clk 0:00:32]} 53. Qxd7 {[%clk 0:00:20]}  Qxe3 {[%clk 0:00:31]} 54. Qe6+ {[%clk 0:00:20]}  Kg7 {[%clk 0:00:26]} 55. Qe7+ {[%clk 0:00:20]}  Kh8 {[%clk 0:00:20]} 56. Qf6+ {[%clk 0:00:18]}  Kg8 {[%clk 0:00:18]} 57. Qg5+ {[%clk 0:00:16]}  Qxg5 {[%clk 0:00:16]} 58. hxg5 {[%clk 0:00:17]}  Kf7 {[%clk 0:00:16]} 59. Kg3 {[%clk 0:00:17]}  Ke6 {[%clk 0:00:16]} 60. Kf4 {[%clk 0:00:17]}  Kxd6 {[%clk 0:00:16]} 61. Kxf5 {[%clk 0:00:17]}  Ke7 {[%clk 0:00:17]} 62. Kg6 {[%clk 0:00:17]}  e3 {[%clk 0:00:17]} 63. Bd3 {[%clk 0:00:17]}  Ke6 {[%clk 0:00:17]} 64. Be2 {[%clk 0:00:16]}  Ke5 {[%clk 0:00:18]} 65. Kh7 {[%clk 0:00:16]}  Kf4 {[%clk 0:00:18]} 66. g6 {[%clk 0:00:17]}  Kg3 {[%clk 0:00:19]} 67. g7 {[%clk 0:00:18]}  Kf2 {[%clk 0:00:20]} 68. Bd3 {[%clk 0:00:18]}  Kf3 {[%clk 0:00:20]} 69. g8=Q {[%clk 0:00:18]}  e2 {[%clk 0:00:21]} 70. Qf7+ {[%clk 0:00:17]}  Ke3 {[%clk 0:00:20]} 71. Bxe2 {[%clk 0:00:18]}  Kxe2 {[%clk 0:00:20]} 72. Qf4 {[%clk 0:00:18]} 1-0


[Site "https://www.chess.com"]

[Event "Titled Tuesday Blitz December 13 Early 2022"]
[White "Bogaudinov, Rushan"]
[Black "Johnson, Ben"]
[WhiteFideId "4129288"]
[BlackFideId "2010917"]
[WhiteElo "2028"]
[BlackElo "2202"]
[Result "1-0"]
[Round "06"]
[TimeControl "180+1"]
[Date "2022.12.14"]
[WhiteClock "0:00:53"]
[BlackClock "0:00:11"]

1. a3 {[%clk 0:02:58]}  d5 {[%clk 0:02:59]} 2. e3 {[%clk 0:02:58]}  e5 {[%clk 0:02:59]} 3. b4 {[%clk 0:02:58]}  Nf6 {[%clk 0:02:58]} 4. Bb2 {[%clk 0:02:58]}  Bd6 {[%clk 0:02:58]} 5. c4 {[%clk 0:02:58]}  dxc4 {[%clk 0:02:57]} 6. Bxc4 {[%clk 0:02:58]}  O-O {[%clk 0:02:58]} 7. Nc3 {[%clk 0:02:57]}  Bg4 {[%clk 0:02:54]} 8. Qb3 {[%clk 0:02:56]}  Nbd7 {[%clk 0:02:49]} 9. h3 {[%clk 0:02:52]}  Bh5 {[%clk 0:02:30]} 10. g4 {[%clk 0:02:52]}  Bg6 {[%clk 0:02:28]} 11. h4 {[%clk 0:02:50]}  h5 {[%clk 0:02:24]} 12. g5 {[%clk 0:02:48]}  Ne4 {[%clk 0:02:23]} 13. d3 {[%clk 0:02:39]}  Nxc3 {[%clk 0:02:11]} 14. Qxc3 {[%clk 0:02:40]}  a6 {[%clk 0:02:01]} 15. Ne2 {[%clk 0:02:40]}  c5 {[%clk 0:01:58]} 16. f4 {[%clk 0:02:27]}  cxb4 {[%clk 0:01:53]} 17. axb4 {[%clk 0:02:27]}  Qb6 {[%clk 0:01:49]} 18. Kf2 {[%clk 0:02:17]}  Bxb4 {[%clk 0:01:34]} 19. Qb3 {[%clk 0:02:16]}  Rae8 {[%clk 0:01:08]} 20. Rab1 {[%clk 0:02:03]}  exf4 {[%clk 0:01:03]} 21. Bd4 {[%clk 0:02:00]}  fxe3+ {[%clk 0:01:02]} 22. Kg1 {[%clk 0:01:59]}  Bc5 {[%clk 0:00:43]} 23. Qxb6 {[%clk 0:01:57]}  Nxb6 {[%clk 0:00:28]} 24. Bxc5 {[%clk 0:01:53]}  Nxc4 {[%clk 0:00:28]} 25. Bxf8 {[%clk 0:01:48]}  Kxf8 {[%clk 0:00:29]} 26. Nf4 {[%clk 0:01:40]}  Nd2 {[%clk 0:00:22]} 27. Rxb7 {[%clk 0:01:35]}  e2 {[%clk 0:00:22]} 28. Nxg6+ {[%clk 0:01:26]}  fxg6 {[%clk 0:00:23]} 29. Kf2 {[%clk 0:01:26]}  Nf3 {[%clk 0:00:13]} 30. Kxf3 {[%clk 0:01:22]}  e1=Q {[%clk 0:00:14]} 31. Rxe1 {[%clk 0:01:22]}  Rxe1 {[%clk 0:00:14]} 32. Ra7 {[%clk 0:01:18]}  Ra1 {[%clk 0:00:13]} 33. Ke4 {[%clk 0:01:17]}  Ra4+ {[%clk 0:00:14]} 34. d4 {[%clk 0:01:17]}  a5 {[%clk 0:00:12]} 35. Ke5 {[%clk 0:01:16]}  Ra1 {[%clk 0:00:12]} 36. d5 {[%clk 0:01:12]}  a4 {[%clk 0:00:12]} 37. Ke6 {[%clk 0:01:10]}  Re1+ {[%clk 0:00:12]} 38. Kd7 {[%clk 0:01:10]}  Re4 {[%clk 0:00:12]} 39. d6 {[%clk 0:01:09]}  Rxh4 {[%clk 0:00:11]} 40. Ra5 {[%clk 0:01:00]}  Rd4 {[%clk 0:00:11]} 41. Ke6 {[%clk 0:00:55]}  h4 {[%clk 0:00:11]} 42. Ra8# {[%clk 0:00:53]} 1-0


[Site "https://www.chess.com"]